[Event "Club Ajedrez Silla 60 Years 2022"]
[Site "Silla"]
[Date "2022.05.11"]
[Round "6.2"]
[White "Granero Roca, Antonio"]
[Black "Salvador Lopez, Daniel"]
[Result "1-0"]
[ECO "D30"]
[WhiteElo "2340"]
[BlackElo "2134"]
[Annotator "TA"]
[PlyCount "93"]
[EventDate "2022.05.09"]
[EventType "tourn"]
[EventCountry "ESP"]
[SourceTitle "playchess.com"]
[Source "ChessBase"]
[SourceQuality "1"]
[TimeControl "5400+30"]

{[%evp 9,93,27,25,6,8,7,18,11,11,5,27,24,34,36,35,42,43,39,41,47,42,8,8,14,19,15,19,13,20,9,22,14,22,0,17,14,0,0,21,0,14,0,148,48,174,22,165,154,158,168,170,167,279,285,305,269,322,318,316,291,377,329,437,420,431,412,413,393,417,460,438,404,367,361,1167,881,852,925,928,929,928,922,851,859,964,897]} 1. Nf3 {[%emt 0:00:04]} Nf6 {[%emt 0:00:15]} 2. d4 {[%emt 0:00:19]} d5 {[%emt 0:00:15]} 3. c4 {[%emt 0:00:26]} c6 {[%emt 0:00:19]} 4. e3 {[%emt 0:00:58]} e6 {[%emt 0:00:27]} 5. Nbd2 {[%emt 0:00:53]} Be7 {[%emt 0:00:27]} 6. Be2 {[%emt 0:02:08] D30: Queen's Gambit Declined: Systems without Nc3.} Nbd7 {[%emt 0:00:27]} 7. b3 {[%emt 0:00:40]} b6 {[%emt 0:00:47]} 8. Bb2 {[%emt 0:01:41] The position is equal.} O-O {[%emt 0:01:46]} 9. O-O {[%emt 0:01:29] [#]} Ba6 $146 {[%emt 0:01:26]} ({Predecessor:} 9... Bb7 10. Rc1 Ne4 11. Rc2 f5 12. Qa1 Rf6 13. cxd5 exd5 14. Rfc1 Rh6 15. Nf1 Qf8 {1-0 (34) Dvalishvili,P (2486)-Nechaeva,M (2226) Moscow 2009}) 10. Rc1 {[%emt 0:05:38]} Rc8 {[%emt 0:01:30]} 11. cxd5 {[%emt 0:03:37]} (11. a3 {keeps more tension.} c5 12. cxd5 Bxe2 13. Qxe2 Nxd5 14. Rfd1) 11... Bxe2 {[%emt 0:00:14]} 12. Qxe2 {[%emt 0:00:06] dxe6 is the strong threat.} cxd5 {[%emt 0:01:30][%cal Oa7a6]} 13. Qa6 {[%emt 0:00:35]} Rxc1 {[%emt 0:02:09]} 14. Rxc1 {[%emt 0:00:08]} Qb8 {[%emt 0:00:52]} 15. a3 {[%emt 0:01:43]} Bd6 {[%emt 0:04:09]} 16. g3 {[%emt 0:01:56]} Qa8 {[%emt 0:04:10]} 17. Ne5 {[%emt 0:05:15]} Nb8 {[%emt 0:01:15] Prevents Nc6.} 18. Qa4 {[%emt 0:01:30]} Qb7 {[%emt 0:00:52]} 19. b4 {[%emt 0:01:58]} a6 {[%emt 0:10:08]} 20. Qc2 {[%emt 0:02:04]} g6 {[%emt 0:03:03]} 21. Nc6 {[%emt 0:03:16]} Nxc6 {[%emt 0:06:23]} 22. Qxc6 {[%emt 0:01:47]} Qb8 {[%emt 0:00:17]} 23. Kg2 {[%emt 0:04:26]} h5 {[%emt 0:01:19][%cal Oh5h4]} 24. Nf3 {[%emt 0:02:21]} Ne4 {[%emt 0:06:06]} 25. Rc2 {[%emt 0:00:37]} f6 {[%emt 0:06:45] [#] Black is now going downhill.} (25... Rd8 $11) 26. Ne1 {[%emt 0:02:21]} ({Better is} 26. Ne5 $1 $16 {[%cal Re5d7][%mdl 512] Threatens to win with Nd7.} fxe5 27. dxe5) 26... h4 {[%emt 0:01:35]} (26... Rf7 $14) 27. Qd7 $2 {[%emt 0:01:24]} ({White should try} 27. gxh4 $18 {Black must now prevent Qd7.} Rf7 28. f3) 27... Ng5 {[%emt 0:03:17]} (27... hxg3 $11 28. Qxe6+ Kg7) 28. gxh4 $18 {[%emt 0:04:01]} Rd8 {[%emt 0:00:59]} 29. Qa4 {[%emt 0:01:55]} Nf7 {[%emt 0:02:38]} 30. Qxa6 {[%emt 0:01:04]} g5 {[%emt 0:01:40]} (30... Kg7 $142 31. h3 Bc7) 31. Rc6 {[%emt 0:02:25]} gxh4 {[%emt 0:04:08]} 32. h3 {[%emt 0:01:09]} (32. Rxb6 Qc7 33. Rb7 Qc8 $18) 32... Kh8 {[%emt 0:01:35]} 33. Rxb6 {[%emt 0:01:57]} Rg8+ {[%emt 0:00:09]} 34. Kf1 {[%emt 0:00:19]} Qf8 {[%emt 0:00:10]} 35. Nf3 {[%emt 0:01:25]} Qg7 {[%emt 0:07:08] And now ...Qg2+ would win.} 36. Rxd6 {[%emt 0:01:22]} Qg2+ {[%emt 0:00:16]} 37. Ke2 {[%emt 0:00:10]} Nxd6 {[%emt 0:01:32]} 38. Qxd6 {[%emt 0:00:15]} Rc8 {[%emt 0:00:24]} 39. Ne1 {[%emt 0:04:34] Prevents Rc2+.} ({Don't play} 39. Qxe6 Rc2+ 40. Nd2 Rxb2 41. Qxf6+ Kg8 42. Qd8+ Kf7 43. Qxh4 Qg6 44. Qf4+ Kg7 45. Qe5+ Kh7 46. Qc7+ (46. Qxd5 Qc2 $16) 46... Kh6 47. Qf4+ Kg7 48. Qe5+ Kh7 49. Qc7+ (49. Qxd5 Qc2 $16) 49... Kh6 $18) 39... Qxh3 {[%emt 0:01:26]} 40. Qf4 {[%emt 0:00:25]} Kg7 {[%emt 0:01:24]} 41. b5 {[%emt 0:01:53] Strongly threatening b6.} Qh1 $2 {[%emt 0:01:40]} (41... Qf5 42. Qxf5 (42. Qxh4 Qb1 $11) 42... exf5) 42. Qd6 {[%emt 0:02:13] Hoping for Qd7+. White is clearly winning.} Rh8 {[%emt 0:03:00]} 43. b6 {[%emt 0:03:24]} h3 {[%emt 0:09:34]} 44. b7 {[%emt 0:00:53]} h2 {[%emt 0:00:42]} 45. b8=Q {[%emt 0:01:02]} Rxb8 {[%emt 0:00:08]} 46. Qxb8 {[%emt 0:00:08]} Qg1 {[%emt 0:00:41]} 47. Nf3 {[%emt 0:34:06] Weighted Error Value: White=0.19 (very precise) /Black=0.30} 1-0

[Event "Club Ajedrez Silla 60 Years 2022"]
[Site "Silla"]
[Date "2022.05.11"]
[Round "6.3"]
[White "Ilinca Ilinca, Felix Antonio"]
[Black "Petrov, Marian"]
[Result "0-1"]
[ECO "A42"]
[WhiteElo "2165"]
[BlackElo "2456"]
[Annotator "TA"]
[PlyCount "58"]
[EventDate "2022.05.09"]
[EventType "tourn"]
[EventCountry "ESP"]
[SourceTitle "playchess.com"]
[Source "ChessBase"]
[SourceQuality "1"]
[TimeControl "5400+30"]

{[%evp 13,58,55,76,54,55,28,52,44,76,72,65,70,65,48,78,68,62,47,83,2,-3,0,74,0,52,-26,-23,-17,-11,-10,0,-14,-27,-303,-284,-293,-189,-893,-885,-920,-911,-895,-891,-863,-862,-787,-708]} 1. c4 {[%emt 0:00:06]} g6 {[%emt 0:06:30]} 2. Nc3 {[%emt 0:00:22]} Bg7 {[%emt 0:00:07]} 3. d4 {[%emt 0:00:35]} d6 {[%emt 0:01:04]} 4. e4 {[%emt 0:01:15]} e5 {[%emt 0:01:59]} 5. d5 {[%emt 0:01:25]} f5 {[%emt 0:00:28]} 6. exf5 {[%emt 0:01:32]} gxf5 {[%emt 0:00:15]} 7. Qh5+ {[%emt 0:01:28]} Kf8 {[%emt 0:00:12]} 8. Qd1 {[%emt 0:01:25] A42: Modern Defence: Averbakh Variation.} Na6 {[%emt 0:03:29] [#]} 9. Bd3 $146 {[%emt 0:03:00]} ({Predecessor:} 9. Nge2 Nf6 10. Ng3 Qe8 11. Be2 Qg6 {½-½ (11) Gulko,B (2615)-Ehlvest,J (2660) San Roque 1996}) 9... Nc5 {[%emt 0:00:58]} 10. Bc2 {[%emt 0:01:06] White is slightly better.} Qh4 {[%emt 0:00:28]} 11. Qe2 {[%emt 0:01:57]} Bd7 {[%emt 0:02:25]} 12. Be3 {[%emt 0:01:55]} ({Reject} 12. Nf3 Qg4 $11) 12... a5 {[%emt 0:01:17][%cal Ba7a5,Ba5a4,Ba4a3][%mdl 32]} 13. O-O-O {[%emt 0:02:13]} Ne7 {[%emt 0:05:28]} 14. Nf3 {[%emt 0:03:02]} Qf6 {[%emt 0:00:12]} 15. h4 {[%emt 0:06:29] And now Bxc5 would win.} (15. Bxc5 $5 dxc5 16. Nd2 $11) 15... a4 {[%emt 0:04:05]} 16. Qd2 {[%emt 0:10:38]} (16. Bxc5 $16 {Strongly threatening Ba3.} dxc5 17. a3) 16... a3 $11 {[%emt 0:06:45]} 17. b3 {[%emt 0:02:59]} Na6 {[%emt 0:10:01] [#]} (17... h6 $11 {keeps the balance.}) 18. g3 {[%emt 0:05:46]} ({Of course not} 18. Bg5 Qf7 $11) (18. g4 $1 $16) 18... c5 {[%emt 0:02:15]} (18... h6 $11) 19. Bg5 {[%emt 0:03:48]} ({White should play} 19. dxc6 $1 $14 Bxc6 {[#]} 20. Bg5 $1) 19... Qf7 {[%emt 0:00:14] next ...h6 is good for Black.} 20. Bh6 $1 {[%emt 0:02:16]} Nb4 {[%emt 0:01:28]} 21. Bb1 {[%emt 0:03:26]} b5 {[%emt 0:05:58]} 22. cxb5 {[%emt 0:06:37]} Rc8 {[%emt 0:02:22] Threatens to win with ...c4.} 23. Bc2 $2 {[%emt 0:06:05][%mdl 8192] Loses the game.} (23. b6 $11 {and White stays safe.}) 23... e4 $19 {[%emt 0:01:10] ...Qf6 is the strong threat.} 24. Ng1 {[%emt 0:00:40]} c4 {[%emt 0:00:30] Really sharp!} 25. Bxg7+ $2 {[%emt 0:04:00]} (25. Nge2 Nd3+ 26. Kb1) 25... Qxg7 {[%emt 0:00:44] Black is clearly winning.} 26. Nge2 {[%emt 0:01:53] [#]} Nxa2+ $1 {[%emt 0:00:42][%mdl 512]} 27. Kb1 {[%emt 0:01:01]} cxb3 {[%emt 0:00:11]} 28. Bxb3 {[%emt 0:00:17]} Nxc3+ {[%emt 0:00:07]} 29. Nxc3 {[%emt 0:00:06]} Rxc3 {[%emt 0:00:42] Weighted Error Value: White=0.64/Black=0.22 (precise)} 0-1

[Event "Club Ajedrez Silla 60 Years 2022"]
[Site "Silla"]
[Date "2022.05.12"]
[Round "7.1"]
[White "Ilinca Ilinca, Felix Antonio"]
[Black "Kotronias, Vasilios"]
[Result "0-1"]
[ECO "B67"]
[WhiteElo "2165"]
[BlackElo "2465"]
[Annotator "TA"]
[PlyCount "80"]
[EventDate "2022.05.09"]
[EventType "tourn"]
[EventCountry "ESP"]
[SourceTitle "playchess.com"]
[Source "ChessBase"]
[SourceQuality "1"]
[TimeControl "5400+30"]

{[%evp 17,80,26,51,18,21,-26,-29,-87,-44,-39,-55,-46,43,34,31,31,33,-6,-7,-10,0,0,0,0,0,0,0,0,0,0,-10,-93,-104,-138,-135,-142,-123,-134,-60,-377,-369,-360,-318,-306,-295,-5185,-3427,-1493,-1393,-5173,-1300,-1235,-1153,-29965,-29966,-29966,-4894,-29981,-29968,-29966,-29966,-29975,-29976,-6170,-5297]} 1. e4 {[%emt 0:00:04]} c5 {[%emt 0:00:24]} 2. Nf3 {[%emt 0:00:21]} Nc6 {[%emt 0:00:09]} 3. d4 {[%emt 0:00:23]} cxd4 {[%emt 0:00:05]} 4. Nxd4 {[%emt 0:00:10]} Nf6 {[%emt 0:00:15]} 5. Nc3 {[%emt 0:00:39]} d6 {[%emt 0:00:07]} 6. Bg5 {[%emt 0:01:02]} e6 {[%emt 0:00:07]} 7. Qd2 {[%emt 0:00:44]} a6 {[%emt 0:00:10]} 8. O-O-O {[%emt 0:00:43]} Bd7 $1 {[%emt 0:00:07] 8...Bd7 is better than 8...h6.} 9. f3 {[%emt 0:03:18]} Be7 {[%emt 0:00:16]} 10. Nxc6 {[%emt 0:01:37] B67: Sicilian: Richter-Rauzer: 7...a6 8 0-0-0 Bd7, lines without 9 f4 Be7.} Bxc6 {[%emt 0:00:06]} 11. Bxf6 {[%emt 0:00:38]} (11. Kb1 $142) 11... Bxf6 $11 {[%emt 0:01:40]} 12. Bc4 {[%emt 0:02:45]} (12. Qxd6 $11 Qa5 13. a3 (13. Kb1 Rd8 $17)) 12... Qa5 {[%emt 0:03:06]} 13. Qxd6 {[%emt 0:04:40] [#]} Rd8 $146 {[%emt 0:02:13]} ({Predecessor:} 13... Bxc3 14. bxc3 Qxc3 15. Bb3 Qa1+ 16. Kd2 Qf6 17. Kc1 Rd8 18. Qxd8+ Qxd8 19. Rxd8+ Kxd8 {0-1 (37) Rush,J-Browning,D Haifa 1976}) 14. Qg3 {[%emt 0:00:20]} Bxc3 {[%emt 0:00:39]} (14... O-O $15 15. Rxd8 Rxd8) 15. Rxd8+ $14 {[%emt 0:06:14]} Qxd8 {[%emt 0:02:43]} 16. bxc3 {[%emt 0:00:25] aiming for Rd1.} O-O {[%emt 0:00:11]} 17. Rd1 {[%emt 0:04:24]} Qa5 {[%emt 0:00:11]} 18. Rd3 {[%emt 0:02:35]} Qc5 {[%emt 0:06:19]} 19. Bb3 {[%emt 0:00:39]} a5 {[%emt 0:00:10]} 20. a4 $1 {[%emt 0:08:30]} Bxa4 {[%emt 0:05:19][%mdl 64] [#] Decoy} 21. Bxa4 {[%emt 0:00:47]} Qa3+ {[%emt 0:00:04]} 22. Kd2 {[%emt 0:00:21]} Qxa4 $11 {[%emt 0:00:05][%mdl 4096] Endgame KQR-KQR} 23. Qc7 $1 {[%emt 0:03:04]} Qb5 $36 {[%emt 0:00:18][%mdl 2048] Black has good play.} 24. f4 {[%emt 0:01:47] Inhibits Qg5.} (24. e5 $11) 24... h6 $17 {[%emt 0:01:56]} 25. Rd8 {[%emt 0:04:18]} Rxd8+ {[%emt 0:00:09]} 26. Qxd8+ {[%emt 0:00:10] KQ-KQ} Kh7 {[%emt 0:00:03]} 27. Qe7 {[%emt 0:03:09]} Qc6 {[%emt 0:03:07]} (27... Qf1 $17 28. Qxf7 Qxg2+ 29. Kc1 Qxe4) 28. Kd3 $2 {[%emt 0:01:49][%mdl 8192] [#] Now White is beyond hope.} (28. Qxf7 $15 Qxe4 29. Kc1) 28... f5 $1 $19 {[%emt 0:01:54]} 29. exf5 {[%emt 0:02:14]} Qd5+ {[%emt 0:02:50]} ({And not} 29... exf5 30. Qe5 $19) 30. Ke3 {[%emt 0:02:23] Hoping for f6.} exf5 {[%emt 0:00:06] ...Qe4+ is the strong threat.} 31. Qc7 $2 {[%emt 0:01:41]} (31. Qe5 Qe4+ 32. Kd2 (32. Qxe4 $2 fxe4 33. c4 a4 $19)) 31... a4 {[%emt 0:03:30] Strongly threatening ...a3.} 32. c4 {[%emt 0:02:10]} Qxg2 {[%emt 0:01:52]} 33. Kd3 {[%emt 0:00:30]} Qf3+ {[%emt 0:00:38]} (33... a3 $142 34. Kc3 Qf3+ 35. Kb4 a2) 34. Kd2 {[%emt 0:02:32]} a3 {[%emt 0:00:09] ( -> ...a2)} 35. Qa5 {[%emt 0:00:44]} Qxf4+ {[%emt 0:00:12]} 36. Kd1 {[%emt 0:00:39]} Qd4+ {[%emt 0:00:59]} (36... Qf3+ $142 37. Kd2 Qf4+ 38. Kd3 Qe4+ 39. Kd2 Qd4+ 40. Ke2 Qxc4+ 41. Kd2 a2 42. Qxf5+ Kh8 43. Qe5 Qb4+ 44. Kd3 Qa3+ 45. Ke2 Qa4 46. h3 a1=Q 47. Qxa1 Qxa1 48. Kd3 Qf1+ 49. Kd4 Qxh3 50. c4 h5 51. Ke4 h4 52. c5 Qg2+ 53. Kf4 h3 54. c6 bxc6 55. Ke5 Qd5+ 56. Kf4 h2 57. Kg3 h1=Q 58. Kg4 Qdf3+ 59. Kg5 Qh6#) 37. Kc1 {[%emt 0:00:38]} Qg1+ {[%emt 0:00:12]} 38. Kd2 {[%emt 0:00:06]} Qxh2+ {[%emt 0:00:06]} 39. Ke1 {[%emt 0:00:31]} Qxc2 {[%emt 0:01:08]} 40. Qxa3 {[%emt 0:00:10]} Qxc4 {[%emt 0:00:09] Weighted Error Value: White=1.07/Black=0.61} 0-1

[Event "Club Ajedrez Silla 60 Years 2022"]
[Site "Silla"]
[Date "2022.05.12"]
[Round "7.2"]
[White "Petrov, Marian"]
[Black "Granero Roca, Antonio"]
[Result "1/2-1/2"]
[ECO "C54"]
[WhiteElo "2456"]
[BlackElo "2340"]
[Annotator "TA"]
[PlyCount "60"]
[EventDate "2022.05.09"]
[EventType "tourn"]
[EventCountry "ESP"]
[SourceTitle "playchess.com"]
[Source "ChessBase"]
[SourceQuality "1"]
[TimeControl "5400+30"]

{[%evp 18,60,30,36,42,28,32,0,2,-15,-12,-10,-14,-8,0,0,0,0,0,0,0,0,0,0,0,0,0,0,0,0,0,-16,-25,-17,-29,-37,-39,-62,-54,-56,-43,-68,-36,-73,-63]} 1. e4 {[%emt 0:00:13]} e5 {[%emt 0:00:12]} 2. Nf3 {[%emt 0:00:06]} Nc6 {[%emt 0:00:10]} 3. Bc4 {[%emt 0:00:07]} Bc5 {[%emt 0:00:11]} 4. c3 {[%emt 0:00:22][%cal Bc2c3,Bc3d4,Bd4d5][%mdl 32]} Nf6 {[%emt 0:00:15]} 5. d4 {[%emt 0:00:07]} exd4 {[%emt 0:00:12]} 6. cxd4 {[%emt 0:00:05]} Bb4+ {[%emt 0:00:14]} 7. Bd2 {[%emt 0:00:06]} Bxd2+ {[%emt 0:00:21]} 8. Nbxd2 {[%emt 0:00:06]} d6 {[%emt 0:01:22]} 9. O-O {[%emt 0:00:12]} O-O {[%emt 0:00:10]} 10. Re1 {[%emt 0:01:01]} Bg4 {[%emt 0:01:13] C54: Giuoco Piano: 4 c3 Nf6, main lines with 5 d4 and 5 d3.} 11. d5 {[%emt 0:00:27]} Ne5 {[%emt 0:00:16] [#] aiming for ...Bxf3.} 12. Be2 {[%emt 0:00:08] White wants to play Nxe5.} Bxf3 {[%emt 0:00:21] [#] The position is equal.} 13. Nxf3 $146 {[%emt 0:00:21]} ({Predecessor:} 13. Bxf3 Re8 14. Qc2 Re7 15. Re3 Nfd7 16. b4 Nxf3+ 17. Nxf3 Ne5 18. Nxe5 dxe5 19. Rg3 {0-1 (80) Akshaya,N-Krushna,M Chennai 2006}) 13... Nxe4 {[%emt 0:01:03]} 14. Nxe5 {[%emt 0:00:07]} dxe5 {[%emt 0:00:07]} 15. Bf3 {[%emt 0:00:20]} Nd6 {[%emt 0:00:12]} 16. Rxe5 {[%emt 0:00:08]} Re8 {[%emt 0:00:33]} 17. Rxe8+ {[%emt 0:00:12]} Qxe8 {[%emt 0:00:09]} 18. Rc1 {[%emt 0:00:48]} Qd7 {[%emt 0:00:51]} 19. Qd3 {[%emt 0:00:21]} Re8 {[%emt 0:00:26]} 20. g3 {[%emt 0:00:09]} Re7 {[%emt 0:00:25]} 21. Kg2 {[%emt 0:00:06]} h6 {[%emt 0:00:23]} 22. a3 {[%emt 0:00:13]} a6 {[%emt 0:00:19]} 23. Rc2 {[%emt 0:00:11]} Qb5 {[%emt 0:00:20]} 24. Qxb5 {[%emt 0:00:23]} Nxb5 $11 {[%emt 0:00:08][%mdl 4096] Endgame KRB-KRN} 25. a4 {[%emt 0:00:14]} Nd6 {[%emt 0:00:10]} 26. h4 {[%emt 0:00:13]} Kf8 {[%emt 0:00:06]} 27. Rc3 {[%emt 0:00:07]} Ke8 {[%emt 0:00:07]} 28. Kf1 {[%emt 0:00:11]} Kd8 {[%emt 0:00:08]} 29. Rc2 {[%emt 0:00:07]} Re5 {[%emt 0:00:12]} 30. Rc3 {[%emt 0:00:06]} f6 {[%emt 0:00:06] Weighted Error Value: White=0.07 (flawless) /Black=0.04 (flawless)} 1/2-1/2

[Event "Club Ajedrez Silla 60 Years 2022"]
[Site "Silla"]
[Date "2022.05.12"]
[Round "7.3"]
[White "Salvador Lopez, Daniel"]
[Black "Krasteva, Beloslava"]
[Result "1/2-1/2"]
[ECO "B49"]
[WhiteElo "2134"]
[BlackElo "2268"]
[Annotator "TA"]
[PlyCount "120"]
[EventDate "2022.05.09"]
[EventType "tourn"]
[EventCountry "ESP"]
[SourceTitle "playchess.com"]
[Source "ChessBase"]
[SourceQuality "1"]
[TimeControl "5400+30"]

{[%evp 16,120,50,20,31,20,39,0,6,-15,-15,-16,-15,-7,-8,-9,-14,-14,0,0,0,0,7,0,17,-16,-11,-18,-4,-8,0,-7,0,0,39,37,0,-7,-8,-35,0,0,0,-19,-10,-70,-60,-50,0,-5,0,0,0,0,77,75,85,62,122,95,116,91,375,286,293,279,285,284,273,269,279,268,441,431,436,420,428,427,422,391,405,364,359,276,414,402,383,38,38,38,61,0,0,0,0,0,0,0,0,0,0,0,0,0,0,0,0]} 1. e4 {[%emt 0:00:04]} c5 {[%emt 0:00:10]} 2. Nc3 {[%emt 0:00:07]} Nc6 {[%emt 0:00:11]} 3. a3 {[%emt 0:00:09]} e6 {[%emt 0:02:49]} 4. Nf3 {[%emt 0:00:07]} a6 {[%emt 0:02:30]} 5. d4 {[%emt 0:00:14]} cxd4 {[%emt 0:00:16]} 6. Nxd4 {[%emt 0:00:13]} Qc7 {[%emt 0:01:14]} 7. Be3 {[%emt 0:01:42]} b5 {[%emt 0:00:14]} 8. Nxc6 {[%emt 0:07:09]} Qxc6 {[%emt 0:00:10]} 9. Be2 {[%emt 0:00:14]} Bb7 {[%emt 0:00:29] B49: Sicilian: Taimanov: 5 Nc3 Qc7 6 Be3 a6 7 Be2.} 10. O-O {[%emt 0:00:28]} Bd6 {[%emt 0:01:26]} 11. Bf3 {[%emt 0:03:04][%cal Oe4e5]} Qc7 {[%emt 0:00:55]} 12. h3 {[%emt 0:03:27]} Nf6 {[%emt 0:00:49] [#]} 13. Re1 $146 {[%emt 0:02:02]} ({Predecessor:} 13. Bd4 e5 14. Be3 h6 15. Qd3 Bc5 16. Nd1 O-O 17. Bxc5 Qxc5 18. Ne3 Rfe8 19. Rfe1 {0-1 (66) Garcia Matos,R (2371)-Ramirez Alvarez,A (2566) Merida 2017}) 13... Bh2+ {[%emt 0:01:52]} 14. Kh1 {[%emt 0:00:48] Threatens to win with g3.} Be5 {[%emt 0:00:06]} 15. Bd4 {[%emt 0:01:50][%cal Oc3d5]} O-O {[%emt 0:01:09]} 16. Qd3 {[%emt 0:01:34]} Bxd4 {[%emt 0:06:49]} 17. Qxd4 {[%emt 0:00:16]} e5 {[%emt 0:00:16]} 18. Qe3 {[%emt 0:10:20]} Bc6 {[%emt 0:04:39]} 19. Rad1 {[%emt 0:02:38]} d6 {[%emt 0:02:11]} 20. g4 {[%emt 0:05:39]} Rfd8 {[%emt 0:04:28]} 21. Re2 {[%emt 0:03:10]} Nd7 {[%emt 0:02:34][%cal Bf6d7,Bd7f8,Bf8e6][%mdl 32]} 22. Red2 {[%emt 0:01:56]} Nf8 {[%emt 0:01:02]} 23. Ne2 {[%emt 0:01:20]} Ne6 {[%emt 0:01:06]} 24. Bg2 {[%emt 0:01:07]} Re8 {[%emt 0:09:00]} 25. Ng3 {[%emt 0:12:32]} g6 {[%emt 0:27:00] Against Nf5} 26. Qh6 {[%emt 0:07:00]} Rad8 {[%emt 0:02:05]} 27. Nf5 {[%emt 0:10:34]} gxf5 {[%emt 0:01:57]} 28. gxf5 {[%emt 0:00:12]} Kh8 {[%emt 0:02:44][%cal Oc6b7]} 29. fxe6 {[%emt 0:02:50]} Rxe6 {[%emt 0:00:12]} 30. Qe3 {[%emt 0:01:19]} ({Better is} 30. Qh4 $11) 30... Rg8 {[%emt 0:00:43] Strongly threatening ...Reg6.} 31. Bf3 {[%emt 0:01:54][%cal Bg2f3,Bf3g4,Bg4f5][%mdl 32]} Qe7 {[%emt 0:07:04]} (31... f5 {is more complex.} 32. exf5 Rh6 33. Bxc6 Qxc6+ 34. Rd5 Rh5) 32. Rg1 {[%emt 0:03:14]} Reg6 {[%emt 0:03:24]} 33. Rxg6 {[%emt 0:01:43]} Rxg6 {[%emt 0:00:10]} 34. Bg4 {[%emt 0:03:50]} Qh4 {[%emt 0:00:44]} (34... Bd7 $11 {keeps the balance.} 35. f3 Be6) 35. Bf5 $1 $16 {[%emt 0:00:29]} Rf6 {[%emt 0:02:27]} 36. Kh2 {[%emt 0:00:48]} Rh6 {[%emt 0:03:07]} ({Black should try} 36... Bb7 $14) 37. f3 {[%emt 0:03:16]} Be8 {[%emt 0:02:20]} 38. Rg2 {[%emt 0:01:07]} f6 $2 {[%emt 0:02:13][%mdl 8192]} (38... Rh5 $16 39. Kh1 h6) 39. Rg3 {[%emt 0:01:16] Black must now prevent Qb6.} Rh5 {[%emt 0:01:21]} 40. Qa7 $1 {[%emt 0:03:51][%csl Gg3][%cal Ra7g7]} Rg5 {[%emt 0:00:09] Prevents Qg7+.} 41. Rxg5 {[%emt 0:00:14] Active counter play!} fxg5 $18 {[%emt 0:00:07][%mdl 4096] Endgame KQB-KQB} 42. Kg2 {[%emt 0:00:21]} g4 {[%emt 0:02:51]} 43. hxg4 {[%emt 0:01:06]} (43. fxg4 $6 Qh6 44. Qf2 Kg7 $16) 43... Qh6 $2 {[%emt 0:00:14]} (43... Kg8 44. Qb8 Qe7) 44. Qe7 {[%emt 0:00:53]} Qd2+ {[%emt 0:01:28]} 45. Kh3 $1 {[%emt 0:00:10][%csl Gf5][%cal Re7h7]} ({Worse is} 45. Kg3 Qe1+ 46. Kh2 (46. Kg2 Qe2+ 47. Kg3 Qe1+ 48. Kh2 Qe2+ 49. Kh3 Qxf3+ 50. Kh4 Qf2+ 51. Kh3 Qf3+ 52. Kh4 Qf2+ 53. Kg5 Qe3+ 54. Kh4 Qf2+ $11) 46... Qf2+ 47. Kh1 (47. Kh3 Qxf3+ 48. Kh4 Qf2+ 49. Kh3 Qf3+ 50. Kh4 Qf2+ 51. Kh3 Qf3+ $11) 47... Qe1+ 48. Kh2 (48. Kg2 Qe2+ 49. Kg3 Qe1+ 50. Kh3 Qh1+ 51. Kg3 Qe1+ $11) 48... Qf2+ 49. Kh1 (49. Kh3 Qxf3+ 50. Kh4 Qf2+ 51. Kh3 Qf3+ 52. Kh4 Qf2+ 53. Kh3 Qf3+ $11) 49... Qe1+ 50. Kh2 $11 (50. Kg2 Qe2+ 51. Kh3 Qxf3+ 52. Kh4 Qf2+ 53. Kg5 Qf4+ 54. Kh4 Qh6+ 55. Kg3 Qe3+ 56. Kg2 Qe2+ 57. Kh1 Qf1+ 58. Kh2 Qf2+ 59. Kh3 Qf3+ 60. Kh4 Qf2+ 61. Kh3 Qf3+ $11)) 45... Qh6+ {[%emt 0:00:07]} 46. Qh4 $1 {[%emt 0:00:14]} ({Weaker is} 46. Kg2 Qd2+ 47. Kh3 (47. Kg3 Qe1+ 48. Kh3 Qh1+ 49. Kg3 Qe1+ 50. Kh3 Qh1+ 51. Kg3 Qe1+ $11) 47... Qh6+ 48. Qh4 (48. Kg2 Qd2+ $16) 48... Qxh4+ 49. Kxh4 a5 $18) 46... Qxh4+ {[%emt 0:01:22]} 47. Kxh4 {[%emt 0:00:06] aiming for b4. KB-KB} a5 {[%emt 0:00:10]} 48. Kg5 {[%emt 0:00:54] And now Kh6 would win.} Kg7 {[%emt 0:00:10] [#]} 49. Bc8 $1 {[%emt 0:01:42]} b4 {[%emt 0:01:07]} (49... Bf7 $142 50. Ba6 h6+ 51. Kf5 Bc4) 50. axb4 {[%emt 0:00:23]} axb4 {[%emt 0:00:01] [#]} 51. c3 $2 {[%emt 0:00:13]} (51. Kf5 $1 $18 {[%cal Rf5e6]}) 51... bxc3 $14 {[%emt 0:00:11]} 52. bxc3 {[%emt 0:00:06] Kf5 is the strong threat.} Bb5 {[%emt 0:01:58]} 53. f4 {[%emt 0:01:15]} (53. Kf5 $14 Bc4 54. Be6) 53... h6+ $1 $11 {[%emt 0:00:23] The position is equal.} 54. Kf5 {[%emt 0:00:07]} exf4 {[%emt 0:00:18]} 55. Kxf4 {[%emt 0:00:20]} Kf6 {[%emt 0:00:03] Against e5+} 56. Bb7 {[%emt 0:00:27]} Be2 {[%emt 0:00:28]} 57. Bd5 {[%emt 0:00:09]} Bd1 {[%emt 0:00:20]} 58. c4 {[%emt 0:00:36]} Be2 {[%emt 0:00:11]} 59. Bg8 {[%emt 0:02:30]} Bd1 {[%emt 0:00:12]} 60. Bd5 {[%emt 0:01:33]} Be2 {[%emt 0:00:07] White really could win this.  Weighted Error Value: White=0.24 (precise) /Black=0.28 (precise)} 1/2-1/2